bitfinex-derivatives/quotes_ETHF0:USTF0_20250321
["timestamp","ask_amount","ask_price","bid_price","bid_amount"]
[1742587674952,3.24557805,1975.3,1975.2,3.00954]
[1742587675350,4.25845805,1975.3,1975.2,3.00954]
[1742587683169,4.25845805,1975.3,1975.2,1.9966]
[1742587683370,4.25845805,1975.3,1975.2,3.00954]
[1742587689372,3.24557805,1975.3,1975.2,3.00954]
[1742587689567,4.25845805,1975.3,1975.2,3.00954]
[1742587693877,4.92005805,1975.3,1975.2,1.3053]
[1742587694075,1.01294,1975.2,1975.1,5.54977]
[1742587694274,2.29614,1975.2,1975.1,5.54977]
[1742587694482,2.29614,1975.2,1975.1,2.34197]
[1742587700384,2.29614,1975.2,1975.1,1.329]
[1742587700788,2.29614,1975.2,1975.1,2.34199]
[1742587701586,2.29614,1975.2,1975.1,1.329]
[1742587701887,2.29614,1975.2,1975.1,2.34199]
[1742587708291,2.93644,1975.2,1975.1,1.329]
[1742587708794,1.01299,1975.1,1975.0,1.01813773]
[1742587708987,5.56029,1975.1,1975.0,2.35813773]
[1742587711186,4.5473,1975.1,1975.0,2.35813773]
[1742587711785,0.00757805,1975.3,1975.2,1.01294]
[1742587711984,5.55285805,1975.3,1975.2,2.34554]
[1742587712185,5.55285805,1975.3,1975.2,3.66754]
[1742587714590,5.55285805,1975.3,1975.2,2.6546]
[1742587714989,5.55285805,1975.3,1975.2,2.0038]
[1742587715195,5.55285805,1975.3,1975.2,1.3326]
[1742587716793,0.00757805,1975.3,1975.2,2.34554]
[1742587717095,4.25845805,1975.3,1975.2,2.34554]
[1742587717700,5.60975805,1975.3,1975.2,2.34554]
[1742587721995,5.60975805,1975.3,1975.2,1.3326]
[1742587724204,5.60975805,1975.3,1975.2,2.34554]
[1742587724703,5.60975805,1975.3,1975.2,1.3326]
[1742587725404,6.90785805,1975.3,1975.2,1.3326]
[1742587730810,1.01294,1975.2,1975.1,0.6841]
[1742587731011,2.30904,1975.2,1975.1,3.06748]
[1742587732913,2.30904,1975.2,1975.1,2.0545]
[1742587733606,1.2961,1975.2,1975.0,0.00509773]
[1742587733917,5.54809,1975.1,1975.0,1.36139773]
[1742587745319,5.54809,1975.1,1975.0,0.00509773]
[1742587751617,8.75589,1975.1,1975.0,0.00509773]
[1742587752420,5.54809,1975.1,1975.0,0.00509773]
[1742587752618,8.75589,1975.1,1975.0,0.00509773]
[1742587752823,5.54809,1975.1,1975.0,0.00509773]
[1742587754423,5.54809,1975.1,1975.0,1.01813773]
[1742587754625,5.54809,1975.1,1975.0,0.00509773]
[1742587754825,2.31109,1975.1,1975.0,1.01813773]
[1742587755023,4.24999,1975.1,1975.0,2.34713773]
[1742587755213,4.24999,1975.1,1975.0,1.33409773]
[1742587758226,4.90279,1975.1,1975.0,0.00509773]
[1742587758425,8.11059,1975.1,1975.0,0.00509773]
[1742587758822,9.04938636,1975.1,1975.0,0.00509773]
[1742587759726,8.96561726,1975.1,1975.0,0.00509773]
[1742587759923,9.04937689,1975.1,1975.0,7.73e-06]
[1742587760128,9.04937656,1975.1,1975.0,7.73e-06]
[1742587761028,11.54937656,1975.1,1975.0,7.73e-06]
[1742587761721,11.5493641,1975.1,1975.0,7.73e-06]
[1742587766431,11.46561726,1975.1,1975.0,7.73e-06]
[1742587766632,11.54935517,1975.1,1975.0,7.73e-06]
[1742587767235,5.81235517,1975.1,1975.0,7.73e-06]
[1742587767437,8.39655517,1975.1,1975.0,7.73e-06]
[1742587767635,7.54152791,1975.1,1975.0,7.73e-06]
[1742587768036,7.45779,1975.1,1975.0,7.73e-06]
[1742587768235,7.5415372,1975.1,1975.0,1.37100773]
[1742587768437,7.54153294,1975.1,1975.0,1.37100773]
[1742587768738,7.45779,1975.1,1975.0,1.37100773]
[1742587768932,4.30451908,1975.1,1975.0,1.37100773]
[1742587769138,7.45779,1975.1,1975.0,1.37100773]
[1742587770429,1.01299,1975.1,1975.0,1.37100773]
[1742587770637,4.24999,1975.1,1975.0,1.37100773]
[1742587772833,5.59289,1975.1,1975.0,1.37100773]
[1742587774141,5.67658639,1975.1,1975.0,1.37100773]
[1742587774640,5.59289,1975.1,1975.0,1.37100773]
[1742587775639,6.32909194,1975.1,1975.0,1.37100773]
[1742587776233,5.59289,1975.1,1975.0,1.37100773]
[1742587776433,6.44632427,1975.1,1975.0,1.37100773]
[1742587776741,6.53000591,1975.1,1975.0,1.37100773]
[1742587777242,6.44632427,1975.1,1975.0,1.37100773]
[1742587777934,4.24999,1975.1,1975.0,1.37100773]
[1742587779839,3.237,1975.1,1975.0,2.38399773]
[1742587780836,4.24999,1975.1,1975.0,2.38399773]
[1742587781034,4.24999,1975.1,1975.0,1.37100773]
[1742587786644,5.63179,1975.1,1975.0,1.37100773]
[1742587792347,5.63179,1975.1,1974.5,8.30329]
[1742587792348,5.0656,1974.9,1974.3,3.2078]
[1742587792553,2.53299,1974.7,1974.4,2.7639]
[1742587792847,3.236,1974.8,1974.7,1.01319]
[1742587793043,3.236,1974.8,1974.7,4.22099]
[1742587793244,3.236,1974.8,1974.7,6.92369]
[1742587793442,3.236,1974.8,1974.7,2.7027]
[1742587793443,4.24914,1974.8,1974.7,2.7027]
[1742587797752,4.24914,1974.8,1974.7,5.9105]
[1742587798156,4.24914,1974.8,1974.7,2.7027]
[1742587798856,4.24914,1974.8,1974.7,3.71589]
[1742587800954,4.24914,1974.8,1974.7,6.92369]
[1742587801152,1.01314,1974.8,1974.7,6.92369]
[1742587801350,4.2491,1974.9,1974.8,1.01314]
[1742587801549,4.2491,1974.9,1974.8,2.36604]
[1742587801751,3.236,1974.9,1974.8,2.36604]
[1742587802458,4.24909,1974.9,1974.8,2.36604]
[1742587803052,5.61268,1975.0,1974.9,1.01309]
[1742587803351,5.61268,1975.0,1974.9,1.2879]
[1742587805154,5.61268,1975.0,1974.9,2.30099]
[1742587805357,5.61268,1975.0,1974.9,1.2879]
[1742587807961,4.5996,1975.0,1974.9,2.30099]
[1742587808162,5.61264,1975.0,1974.9,2.30099]
[1742587808363,0.69047805,1975.3,1974.9,2.30099]
[1742587808661,5.55695,1975.2,1975.1,1.01299]
[1742587808856,5.55695,1975.2,1975.1,1.3164]
[1742587823177,0.00757805,1975.3,1975.2,1.01294]
[1742587823573,0.00757805,1975.3,1975.2,2.31324]
[1742587823768,0.00757805,1975.3,1975.2,43.11324]
[1742587823769,1.29277805,1975.3,1975.2,43.11324]
[1742587824464,2.30565805,1975.3,1975.2,43.11324]
[1742587824670,2.30565805,1975.3,1975.2,2.31324]
[1742587827680,2.30565805,1975.3,1975.2,1.3003]
[1742587829180,2.30565805,1975.3,1975.2,2.31324]
[1742587836174,1.29277805,1975.3,1975.2,2.31324]
[1742587837675,0.00757805,1975.3,1975.2,2.31324]
[1742587837884,1.321,1975.4,1975.3,1.01288]
[1742587838079,1.321,1975.4,1975.3,3.05548]
[1742587838378,1.321,1975.4,1975.3,3.74268]
[1742587838585,2.33383,1975.4,1975.3,3.74268]
[1742587843383,1.321,1975.4,1975.3,3.74268]
[1742587844385,2.33383,1975.4,1975.3,3.74268]
[1742587846676,1.321,1975.4,1975.3,3.74268]
[1742587856206,2.33383,1975.4,1975.3,3.74268]
[1742587863611,2.33383,1975.4,1975.3,1.3529]
[1742587863817,1.01288,1975.3,1975.2,0.00757805]
[1742587864017,5.66038,1975.3,1975.2,0.00757805]
[1742587865714,5.66038,1975.3,1975.2,1.34327805]
[1742587866211,5.66038,1975.3,1975.2,2.35621805]
[1742587866412,5.66038,1975.3,1975.2,1.34327805]
[1742587869623,5.66038,1975.3,1975.2,2.35621805]
[1742587871227,1.4135,1975.3,1975.2,2.35621805]
[1742587871523,5.66038,1975.3,1975.2,2.35621805]
[1742587873624,5.66038,1975.3,1975.2,1.34327805]
[1742587873822,5.66038,1975.3,1975.2,2.35621805]
[1742587874217,5.66038,1975.3,1975.2,1.34327805]
[1742587874524,6.31118,1975.3,1975.2,2.35621805]
[1742587874721,6.31118,1975.3,1975.2,1.34327805]
[1742587874922,6.31118,1975.3,1975.2,0.00757805]
[1742587875420,6.31118,1975.3,1975.2,1.30847805]
[1742587876023,6.31118,1975.3,1975.2,0.00757805]
[1742587877719,9.51898,1975.3,1975.2,0.00757805]
[1742587878027,1.01311,1974.9,1974.8,2.6603]
[1742587878230,1.01311,1974.9,1974.8,3.67342]
[1742587878828,2.38951,1974.9,1974.8,3.67342]
[1742587880924,2.38951,1974.9,1974.8,1.3455]
[1742587881422,1.01319,1974.7,1974.6,4.563]
[1742587881724,4.24719,1974.7,1974.6,3.8734]
[1742587881939,5.62599,1974.7,1974.6,3.8734]
[1742587882117,5.62599,1974.7,1974.6,0.6656]
[1742587882322,1.01329,1974.6,1974.5,1.01324]
[1742587882824,2.31019,1974.6,1974.5,2.37944]
[1742587883328,2.31019,1974.6,1974.5,1.3662]
[1742587883828,2.31019,1974.6,1974.4,2.36851]
[1742587883829,1.0135,1974.2,1974.1,1.01345]
[1742587884137,1.0135,1974.2,1974.1,2.0317]
[1742587884318,3.0473,1974.2,1974.1,2.0317]
[1742587886328,3.0473,1974.2,1974.1,3.0452]
[1742587886534,1.3671,1974.2,1974.1,3.0452]
[1742587886829,2.38055,1974.2,1974.1,3.0452]
[1742587887528,1.3671,1974.2,1974.1,3.0452]
[1742587888332,0.00759763,1974.3,1974.2,1.01345]
[1742587888527,0.00759763,1974.3,1974.2,5.60455]
[1742587890330,53.81128,1974.6,1974.5,1.01329]
[1742587890331,9.203,1974.6,1974.5,1.01329]
[1742587890535,3.235,1974.6,1974.5,1.01329]
[1742587891035,3.235,1974.6,1974.5,2.32829]
[1742587892637,1.02079763,1974.7,1974.6,1.01324]
[1742587892937,1.02079763,1974.7,1974.6,2.32824]
[1742587893435,2.34809763,1974.7,1974.6,2.32824]
[1742587894231,0.00759763,1974.7,1974.6,2.32824]
[1742587894430,0.00759763,1974.7,1974.6,5.53604]
[1742587895532,1.02078763,1974.7,1974.6,5.53604]
[1742587895733,0.00759763,1974.7,1974.6,5.53604]
[1742587896333,1.02078763,1974.7,1974.6,5.53604]
[1742587896530,2.41318763,1974.7,1974.6,2.32824]
[1742587896941,3.07448763,1974.7,1974.6,1.315]
[1742587897945,3.07448763,1974.7,1974.6,2.32824]
[1742587898542,3.07448763,1974.7,1974.6,1.315]
[1742587899834,3.07448763,1974.7,1974.6,2.32824]
[1742587903546,3.07448763,1974.7,1974.6,1.315]
[1742587904046,1.01324,1974.6,1974.5,1.01325]
[1742587904339,6.21394,1974.6,1974.5,2.28885]
[1742587905348,5.56994,1974.6,1974.5,2.28885]
[1742587907247,1.3217,1974.6,1974.5,2.28885]
[1742587907444,4.25578763,1974.7,1974.6,1.01324]
[1742587907644,4.25578763,1974.7,1974.6,2.39564]
[1742587907645,5.63998763,1974.7,1974.6,2.39564]
[1742587908040,5.63998763,1974.7,1974.6,1.3824]
[1742587910951,5.63998763,1974.7,1974.6,2.39564]
[1742587911649,1.39179763,1974.7,1974.6,2.39564]
[1742587911844,5.63898763,1974.7,1974.6,5.60344]
[1742587912051,0.00759763,1974.7,1974.6,5.60344]
[1742587912663,51.081,1975.1,1974.9,1.01306]
[1742587912854,51.081,1975.1,1975.0,2.0419]
[1742587912855,52.3811,1975.1,1975.0,2.0419]
[1742587913056,5.5471,1975.1,1975.0,2.0419]
[1742587913563,3.234,1975.1,1975.0,3.05494]
[1742587914264,4.5341,1975.1,1975.0,3.05494]
[1742587914456,0.00759763,1975.2,1975.1,1.01299]
[1742587914762,0.00759763,1975.2,1975.1,5.56109]
[1742587915060,0.00759763,1975.2,1975.1,46.36109]
[1742587915358,0.00759763,1975.2,1975.1,5.56109]
[1742587915750,0.00759763,1975.2,1975.1,47.01609]
[1742587916563,0.00759763,1975.2,1975.1,6.21609]
[1742587926467,1.3795,1975.4,1975.3,1.01288]
[1742587927168,1.3795,1975.4,1975.3,4.22068]
[1742587927968,1.3795,1975.4,1975.3,4.92208]
[1742587931574,0.00759763,1975.5,1975.4,1.01283]
[1742587931772,0.00759763,1975.5,1975.4,2.93463]
[1742587931968,1.32909763,1975.5,1975.4,2.93463]
[1742587937181,2.34187763,1975.5,1975.4,2.93463]
[1742587937378,1.32909763,1975.5,1975.4,2.93463]
[1742587953690,2.34187763,1975.5,1975.4,2.29463]
[1742587953989,1.01283,1975.4,1975.3,4.22064]
[1742587954190,5.53673,1975.4,1975.3,3.2078]
[1742587954993,1.01288,1975.3,1975.2,1.01289]
[1742587955185,2.30478,1975.3,1975.2,1.01289]
[1742587956690,1.2919,1975.3,1975.2,1.01289]
[1742587956889,0.68519763,1975.5,1975.2,4.49654]
[1742587957192,1.3973,1975.4,1975.3,4.90698]
[1742587957390,1.3973,1975.4,1975.3,6.28848]
[1742587964294,2.41013,1975.4,1975.3,6.28848]
[1742587965397,1.3973,1975.4,1975.3,6.28848]
[1742587965786,2.41013,1975.4,1975.3,6.28848]
[1742587965984,1.3973,1975.4,1975.3,6.28848]
[1742587967301,2.41013,1975.4,1975.3,6.28848]
[1742587971301,2.41013,1975.4,1975.3,3.08068]
[1742587971502,2.41013,1975.4,1975.3,6.28848]
[1742587972598,1.3973,1975.4,1975.3,6.28848]
[1742587973400,2.41013,1975.4,1975.3,6.28848]
[1742587973703,1.3973,1975.4,1975.3,6.28848]
[1742587976300,1.6473,1975.4,1975.3,6.28848]
[1742587977306,1.6473,1975.4,1975.3,3.08068]
[1742587982411,2.66013,1975.4,1975.3,2.39438]
[1742587982612,1.01294,1975.3,1975.2,1.01289]
[1742587982906,1.01307,1975.1,1975.0,1.01301]
[1742587983111,4.24507,1975.1,1975.0,2.33291]
[1742587983315,5.52387,1975.1,1975.0,1.01301]
[1742587985611,1.01304,1975.0,1974.9,2.33295]
[1742587985813,2.96394,1975.0,1974.9,2.33295]
[1742587988118,1.01314,1974.9,1974.8,1.01311]
[1742587988313,3.00354,1974.9,1974.8,1.01311]
[1742587988615,6.23554,1974.9,1974.8,2.39011]
[1742587990113,6.23554,1974.9,1974.8,1.377]
[1742587990321,1.01324,1974.6,1974.5,0.6566]
[1742587990617,1.01324,1974.6,1974.5,4.87763]
[1742587991630,2.36534,1974.6,1974.5,6.20493]
[1742587992235,3.01514,1974.6,1974.5,2.99713]
[1742587993532,3.01514,1974.6,1974.5,1.3273]
[1742587993828,1.01329,1974.5,1974.4,0.00759763]
[1742587994132,5.57209,1974.5,1974.4,1.29149763]
[1742587995030,5.57209,1974.5,1974.4,0.00759763]
[1742587995729,5.57209,1974.5,1974.4,1.29149763]
[1742587995932,5.57209,1974.5,1974.4,0.00759763]
[1742587998427,5.65583224,1974.5,1974.4,0.00759763]
[1742587998731,8.86363224,1974.5,1974.4,0.00759763]
[1742587998926,8.77989,1974.5,1974.4,0.00759763]
[1742587999134,2.34009,1974.5,1974.4,1.02094763]
[1742587999322,5.57309,1974.5,1974.4,1.02094763]
[1742587999734,4.24629,1974.5,1974.4,1.70734763]
[1742588000034,4.24629,1974.5,1974.4,3.07654763]
[1742588000830,1.01329,1974.5,1974.4,3.07654763]
[1742588001034,4.24629,1974.5,1974.4,3.07654763]
[1742588001330,5.54599,1974.5,1974.4,3.07654763]
[1742588003736,5.54599,1974.5,1974.4,2.06319763]
[1742588004032,6.21749,1974.5,1974.4,1.37679763]
[1742588004335,6.86289,1974.5,1974.4,1.37679763]
[1742588007236,6.86289,1974.5,1974.4,0.00759763]
[1742588010832,5.93334572,1974.5,1974.1,1.69407]
[1742588011035,1.0135,1974.1,1974.0,0.6459]
[1742588011238,1.0135,1974.1,1973.7,2.53423]
[1742588011239,1.01363,1973.9,1973.8,2.30169]
[1742588011534,0.687,1974.2,1973.8,7.02994]
[1742588011725,8.5014,1974.4,1973.9,2.5339]
[1742588011926,8.5014,1974.4,1974.1,4.2213]
[1742588011927,0.00759763,1974.2,1974.1,4.2213]
[1742588012428,4.5417,1974.5,1974.1,4.2213]
[1742588012733,5.55501,1974.5,1974.2,1.3113]
[1742588012926,5.55501,1974.5,1974.3,1.01335]
[1742588013126,5.55501,1974.5,1974.4,1.3113]
[1742588023040,5.80501,1974.5,1974.4,1.3113]
[1742588023237,5.88877407,1974.5,1974.4,1.3113]
[1742588023637,1.0135,1974.1,1974.0,1.01353]
[1742588025240,1.0135,1974.1,1974.0,2.35243]
[1742588027650,1.0135,1974.1,1974.0,2.99783]
[1742588028165,4.2465,1974.1,1974.0,2.99783]
[1742588029852,3.233,1974.1,1974.0,2.99783]
[1742588030249,3.233,1974.1,1974.0,3.63573]
[1742588031048,3.483,1974.1,1974.0,3.63573]
[1742588031450,0.25,1974.1,1974.0,3.63573]
[1742588034056,1.2635,1974.1,1974.0,3.63573]
[1742588034257,0.25,1974.1,1974.0,3.63573]
[1742588047568,0.25,1974.1,1974.0,6.84353]
[1742588049467,0.25,1974.1,1974.0,3.63573]
[1742588049663,0.25,1974.1,1974.0,6.84353]
[1742588058267,1.3472,1974.2,1974.1,1.0135]
[1742588058477,1.3472,1974.2,1974.1,2.3174]
[1742588066175,1.3472,1974.2,1974.1,5.5252]
[1742588069993,1.3472,1974.2,1974.1,2.3174]
[1742588070194,1.3472,1974.2,1974.1,5.5252]
[1742588077901,2.36065,1974.2,1974.1,5.5252]
[1742588078190,1.3472,1974.2,1974.1,5.5252]
[1742588078395,2.36065,1974.2,1974.1,5.5252]
[1742588080191,2.36065,1974.2,1974.1,2.3174]
[1742588082892,2.36065,1974.2,1974.1,1.0135]
[1742588083092,2.36065,1974.2,1973.9,8.27561]
[1742588083093,7.11284,1974.2,1973.8,14.46109698]
[1742588083297,7.11284,1974.2,1973.9,1.01357]
[1742588083298,1.0136,1974.0,1973.9,1.01357]
[1742588083498,4.2456,1974.0,1973.9,1.01357]
[1742588083698,6.2587,1974.0,1973.9,1.01357]
[1742588085997,6.2587,1974.0,1973.9,2.39487]
[1742588095205,5.968,1974.3,1974.2,1.01345]
[1742588095401,9.2,1974.3,1974.2,1.01345]
[1742588095595,5.968,1974.3,1974.2,1.01345]
[1742588095903,5.968,1974.3,1974.2,1.71375]
[1742588096099,0.78359763,1974.3,1974.2,1.71375]
[1742588096295,3.23959763,1974.6,1974.5,1.01329]
[1742588096904,3.23959763,1974.6,1974.5,3.10749]
[1742588099301,0.00759763,1974.6,1974.5,3.10749]
[1742588099805,9.13472865,1975.1,1975.0,1.01304]
[1742588100006,4.5485,1975.1,1975.0,4.22084]
[1742588100304,46.843,1975.3,1975.2,1.01294]
[1742588100603,3.232,1975.3,1975.2,4.22074]
[1742588101400,4.24488,1975.3,1975.2,1.01294]
[1742588101600,4.24488,1975.3,1975.1,1.29999763]
[1742588101601,1.01294,1975.2,1975.1,2.31293763]
[1742588101802,2.40274,1975.2,1975.1,2.31293763]
[1742588102002,5.63474,1975.2,1975.1,2.31293763]
[1742588104913,5.63474,1975.2,1975.1,0.00759763]
[1742588105408,5.63474,1975.2,1975.1,1.02058763]
[1742588105608,5.63474,1975.2,1975.1,2.29548763]
[1742588109912,5.63474,1975.2,1975.1,1.28249763]
[1742588110119,5.63474,1975.2,1975.1,0.00759763]
[1742588110912,1.01309,1974.9,1974.8,1.4039]
[1742588111102,4.24309,1974.9,1974.8,1.4039]
[1742588111713,5.52409,1974.9,1974.8,1.4039]
[1742588115617,1.01314,1974.8,1974.7,0.00759763]
[1742588115817,1.4123,1974.8,1974.7,2.37568763]
[1742588116116,3.23,1975.0,1974.8,1.01314]
[1742588116320,3.23,1975.0,1974.9,4.90199]
[1742588116712,0.703,1975.3,1974.9,5.2438]
[1742588117019,3.23,1975.2,1975.1,1.01296]
[1742588119414,3.23,1975.2,1975.1,4.22076]
[1742588119612,2.32706763,1975.4,1975.3,1.01288]
[1742588119809,5.55706763,1975.4,1975.3,1.01288]
[1742588120316,4.54419763,1975.4,1975.3,1.01288]
[1742588120521,5.55702763,1975.4,1975.3,1.68728]
[1742588122021,5.55702763,1975.4,1975.3,0.6744]
[1742588122222,5.55702763,1975.4,1975.3,1.01288]
[1742588125231,5.06456,1975.3,1974.9,3.2078]
[1742588125520,1.01304,1975.0,1974.9,3.03715]
[1742588125730,4.24304,1975.0,1974.9,3.03715]
[1742588138736,4.24304,1975.0,1974.9,1.3772]
[1742588138927,4.90764,1975.0,1974.9,2.39029]
[1742588142636,1.01314,1974.8,1974.7,0.70309763]
[1742588142934,4.24314,1974.8,1974.7,1.40019763]
[1742588143335,4.91174,1974.8,1974.7,1.40019763]
[1742588145435,4.91174,1974.8,1974.7,0.00759763]
[1742588145631,8.11954,1974.8,1974.7,0.00759763]
[1742588146237,8.20335621,1974.8,1974.7,0.00759763]
[1742588146833,9.43794,1974.8,1974.7,0.00759763]
[1742588147041,9.52175629,1974.8,1974.7,0.00759763]
[1742588147342,9.43794,1974.8,1974.7,0.00759763]
[1742588148739,9.52175674,1974.8,1974.7,0.00759763]
[1742588149545,9.43794,1974.8,1974.7,0.00759763]
[1742588152140,10.37591271,1974.8,1974.7,0.00759763]
[1742588152343,11.30768501,1974.8,1974.7,0.00759763]
[1742588152544,11.30768527,1974.8,1974.7,0.00759763]
[1742588153141,11.30769171,1974.8,1974.7,0.00759763]
[1742588154738,11.30769509,1974.8,1974.7,0.00759763]
[1742588156337,1.01329,1974.5,1974.4,0.6718]
[1742588156639,4.24329,1974.5,1974.4,0.6718]
[1742588157438,4.24329,1974.5,1974.4,2.0637]
[1742588164641,5.54679,1974.5,1974.4,2.0637]
[1742588165943,6.22149,1974.5,1974.4,2.0637]
[1742588169546,1.01335,1974.4,1974.3,0.70549763]
[1742588169751,2.34015,1974.4,1974.3,0.70549763]
[1742588171354,5.57015,1974.4,1974.3,1.71889763]
[1742588171549,4.24335,1974.4,1974.3,1.71889763]
[1742588172851,4.24335,1974.4,1974.3,3.12219763]
[1742588178656,4.24335,1974.4,1974.3,2.10879763]
[1742588179763,4.24335,1974.4,1974.3,3.12219763]
[1742588181172,4.24335,1974.4,1974.3,2.10879763]
[1742588182159,4.24335,1974.4,1974.3,0.00759763]
[1742588182866,5.59645,1974.4,1974.3,0.00759763]
[1742588183068,5.59645,1974.4,1974.3,1.34829763]
[1742588184266,5.59645,1974.4,1974.3,0.00759763]
[1742588184855,6.53085518,1974.4,1974.3,0.00759763]
[1742588185361,5.59645,1974.4,1974.3,0.00759763]
[1742588185567,5.59645,1974.4,1974.3,1.34829763]
[1742588207187,8.80425,1974.4,1974.3,1.34829763]
[1742588212192,5.59645,1974.4,1974.3,1.34829763]
[1742588212385,1.3531,1974.4,1974.3,5.56949763]
[1742588212687,3.23,1974.5,1974.4,1.0133]
[1742588212889,4.24334,1974.5,1974.4,2.6621]
[1742588213387,4.24334,1974.5,1974.4,3.67545]
[1742588213589,4.24334,1974.5,1974.4,2.6621]
[1742588214085,4.24334,1974.5,1974.4,3.67545]
[1742588214285,4.24334,1974.5,1974.4,2.6621]
[1742588214486,4.24334,1974.5,1974.4,3.67545]
[1742588215691,4.24334,1974.5,1974.4,2.6621]
[1742588216593,4.24334,1974.5,1974.4,3.67545]
[1742588218391,4.24334,1974.5,1974.4,2.6621]
[1742588218786,4.24334,1974.5,1974.4,3.67545]
[1742588219295,4.24334,1974.5,1974.4,2.6621]
[1742588220193,4.24334,1974.5,1974.4,3.67545]
[1742588221594,3.23,1974.5,1974.4,3.67545]
[1742588221996,1.2944,1974.6,1974.5,1.01329]
[1742588222192,1.01295,1975.2,1974.5,4.5148]
[1742588222394,48.2114,1975.3,1975.1,1.01298]
[1742588222707,4.24196,1975.2,1975.1,1.01298]
[1742588222998,4.24196,1975.2,1975.1,2.40348]
[1742588223192,3.229,1975.2,1975.1,1.3905]
[1742588223389,4.24194,1975.2,1975.1,2.40349]
[1742588223596,4.24194,1975.2,1975.1,1.3905]
[1742588223797,5.54484,1975.2,1975.1,2.7284]
[1742588224102,1.01309,1975.0,1974.9,1.01308]
[1742588224303,4.24209,1975.0,1974.9,3.74148]
[1742588225807,3.229,1975.0,1974.9,3.74148]
[1742588226295,5.57914,1975.0,1974.9,3.74148]
[1742588226491,4.5661,1975.0,1974.9,3.74148]
[1742588226896,5.57914,1975.0,1974.9,3.74148]
[1742588228506,4.5661,1975.0,1974.9,3.74148]
[1742588228698,1.01298,1975.2,1975.1,1.01299]
[1742588228900,1.3802,1975.2,1975.1,1.01299]
[1742588229100,3.23659763,1975.4,1975.3,1.01288]
[1742588229303,4.61679763,1975.4,1975.3,4.22068]
[1742588230402,0.00759763,1975.4,1975.3,4.22068]
[1742588233302,1.31109763,1975.4,1975.3,4.22068]
[1742588240312,1.31109763,1975.4,1975.3,5.60098]
[1742588270158,7.63e-06,1975.4,1975.3,13.97298]
[1742588272560,7.63e-06,1975.4,1975.3,29.84305834]
[1742588274564,7.63e-06,1975.4,1975.3,13.97298]
[1742588277070,7.63e-06,1975.4,1975.3,25.9083044]
[1742588279573,7.63e-06,1975.4,1975.3,13.97298]
[1742588282368,7.63e-06,1975.4,1975.3,29.84305834]
[1742588283873,0.6995,1976.0,1975.3,29.84305834]
[1742588283874,0.6995,1976.0,1975.9,1.01258]
[1742588284066,0.66100474,1976.0,1975.9,10.09238]
[1742588284266,0.66100474,1976.0,1975.9,11.43918]
[1742588285476,1.31780474,1976.0,1975.9,11.43918]
[1742588286973,2.61140474,1976.0,1975.9,11.43918]
[1742588287779,2.61140474,1976.0,1975.9,10.09238]
[1742588288377,2.61140474,1976.0,1975.9,11.45958]
[1742588288979,2.61140474,1976.0,1975.9,5.58758]
[1742588289782,1.95460474,1976.0,1975.9,5.58758]
[1742588289975,1.95460474,1976.0,1975.9,6.27428]
[1742588292083,1.95460474,1976.0,1975.9,5.58758]
[1742588298482,7.63e-06,1976.1,1976.0,1.01253]
[1742588298779,0.6609,1977.1,1977.0,1.01201]
[1742588298987,0.6609,1977.1,1977.0,4.21981]
[1742588299683,1.67286,1977.1,1977.0,4.21981]
[1742588301976,3.76136,1977.1,1977.0,4.21981]
[1742588303990,3.76136,1977.1,1977.0,5.49551]
[1742588309189,3.76136,1977.1,1977.0,3.2078]
[1742588309500,1.01201,1977.0,1976.9,1.01965763]
[1742588309790,5.56101,1977.0,1976.9,1.01965763]
[1742588310694,4.549,1977.0,1976.9,1.01965763]
[1742588310890,5.56101,1977.0,1976.9,2.37785763]
[1742588311086,5.56101,1977.0,1976.9,3.01835763]
[1742588311292,4.23601,1977.0,1976.9,3.01835763]
[1742588312485,3.224,1977.0,1976.9,3.01835763]
[1742588312785,4.23601,1977.0,1976.9,3.01835763]
[1742588312991,1.01201,1977.0,1976.9,3.01835763]
[1742588313789,0.00759763,1977.2,1977.1,1.01196]
[1742588313984,0.00759763,1977.2,1977.1,4.21976]
[1742588314294,5.05786,1977.9,1977.1,4.21976]
[1742588314295,3.224,1978.0,1977.5,2.52927]
[1742588314494,1.01171,1977.7,1977.6,2.36186]
[1742588316886,2.35331,1977.7,1977.6,2.36186]
[1742588317593,2.35331,1977.7,1977.6,3.05306]
[1742588317788,1.3416,1977.7,1977.6,3.05306]
[1742588317995,3.23059763,1977.8,1977.7,1.01166]
[1742588317996,0.00759763,1977.8,1977.7,1.01166]
[1742588318196,0.00759763,1977.8,1977.7,6.33306]
[1742588320393,1.01919763,1977.8,1977.7,6.33306]
[1742588320593,0.00759763,1977.8,1977.7,6.33306]
[1742588322696,1.01919763,1977.8,1977.7,6.33306]
[1742588323397,0.00759763,1977.8,1977.7,6.33306]
[1742588323697,1.01919763,1977.8,1977.7,6.33306]
[1742588324395,0.00759763,1977.8,1977.7,6.33306]
[1742588325991,1.01919763,1977.8,1977.7,6.33306]
[1742588326697,0.00759763,1977.8,1977.7,6.33306]
[1742588326895,1.01919763,1977.8,1977.7,6.33306]
[1742588327095,0.00759763,1977.8,1977.7,6.33306]
[1742588327492,1.01919763,1977.8,1977.7,6.33306]
[1742588328905,0.00759763,1977.8,1977.7,6.33306]
[1742588329099,1.01919763,1977.8,1977.7,6.33306]
[1742588329299,0.00759763,1977.8,1977.7,6.33306]
[1742588329499,1.01919763,1977.8,1977.7,6.33306]
[1742588329700,0.00759763,1977.8,1977.7,6.33306]
[1742588332002,1.01919763,1977.8,1977.7,2.41796]
[1742588332202,2.34789763,1977.8,1977.7,1.4063]
[1742588332396,1.33629763,1977.8,1977.7,2.41796]
[1742588332590,0.00759763,1977.8,1977.7,5.62576]
[1742588349710,1.33379763,1977.8,1977.7,5.62576]
[1742588350314,0.00759763,1977.8,1977.7,5.62576]
[1742588353018,1.31019763,1977.8,1977.7,5.62576]